{"text_format":"3","workbook":"xlsx","n_sheets":2,"sheets":["Расходы","Категории"],"not_rendered":{"defined_names":5},"read":"whole","date_system":"1900"}

{"sheet":"Расходы","index":0,"n_rows":25,"n_cols":7,"rows_kept":25,"merged":[[0,1,0,5],[1,1,1,6]]}
[null,"БЮДЖЕТ РАСХОДОВ",{"$nulls":4},{"$f":"TODAY()","v":"2018-06-19"}]
[null,"Название предприятия"]
[null,"Статья","Категория","Сметные","Фактические","Разница (₽)","Разница (%)"]
[null,"Реклама","Операционные",null,null,{"$f":"IFERROR(SUM(Расходы[Сметные]-Расходы[Фактические]), \"\")","v":0},{"$f":"IFERROR(SUM(Расходы[Разница (₽)]/Расходы[Сметные]),\"\")","v":""}]
[null,"Задолженности","Операционные",null,null,{"$f":"IFERROR(SUM(Расходы[Сметные]-Расходы[Фактические]), \"\")","v":0},{"$f":"IFERROR(SUM(Расходы[Разница (₽)]/Расходы[Сметные]),\"\")","v":""}]
[null,"Льготы","Операционные",null,null,{"$f":"IFERROR(SUM(Расходы[Сметные]-Расходы[Фактические]), \"\")","v":0},{"$f":"IFERROR(SUM(Расходы[Разница (₽)]/Расходы[Сметные]),\"\")","v":""}]
[null,"Материалы","Операционные",null,null,{"$f":"IFERROR(SUM(Расходы[Сметные]-Расходы[Фактические]), \"\")","v":0},{"$f":"IFERROR(SUM(Расходы[Разница (₽)]/Расходы[Сметные]),\"\")","v":""}]
[null,"Почтовые расходы","Операционные",null,null,{"$f":"IFERROR(SUM(Расходы[Сметные]-Расходы[Фактические]), \"\")","v":0},{"$f":"IFERROR(SUM(Расходы[Разница (₽)]/Расходы[Сметные]),\"\")","v":""}]
[null,"Аренда или ипотека","Операционные",null,null,{"$f":"IFERROR(SUM(Расходы[Сметные]-Расходы[Фактические]), \"\")","v":0},{"$f":"IFERROR(SUM(Расходы[Разница (₽)]/Расходы[Сметные]),\"\")","v":""}]
[null,"Расходы на продажи","Операционные",null,null,{"$f":"IFERROR(SUM(Расходы[Сметные]-Расходы[Фактические]), \"\")","v":0},{"$f":"IFERROR(SUM(Расходы[Разница (₽)]/Расходы[Сметные]),\"\")","v":""}]
[null,"Налоги","Операционные",null,null,{"$f":"IFERROR(SUM(Расходы[Сметные]-Расходы[Фактические]), \"\")","v":0},{"$f":"IFERROR(SUM(Расходы[Разница (₽)]/Расходы[Сметные]),\"\")","v":""}]
[null,"Коммунальные услуги","Операционные",null,null,{"$f":"IFERROR(SUM(Расходы[Сметные]-Расходы[Фактические]), \"\")","v":0},{"$f":"IFERROR(SUM(Расходы[Разница (₽)]/Расходы[Сметные]),\"\")","v":""}]
[null,"Другие","Операционные",null,null,{"$f":"IFERROR(SUM(Расходы[Сметные]-Расходы[Фактические]), \"\")","v":0},{"$f":"IFERROR(SUM(Расходы[Разница (₽)]/Расходы[Сметные]),\"\")","v":""}]
[null,"Страхование","Операционные",null,null,{"$f":"IFERROR(SUM(Расходы[Сметные]-Расходы[Фактические]), \"\")","v":0},{"$f":"IFERROR(SUM(Расходы[Разница (₽)]/Расходы[Сметные]),\"\")","v":""}]
[null,"Проценты по кредиту","Операционные",null,null,{"$f":"IFERROR(SUM(Расходы[Сметные]-Расходы[Фактические]), \"\")","v":0},{"$f":"IFERROR(SUM(Расходы[Разница (₽)]/Расходы[Сметные]),\"\")","v":""}]
[null,"Телефон","Операционные",null,null,{"$f":"IFERROR(SUM(Расходы[Сметные]-Расходы[Фактические]), \"\")","v":0},{"$f":"IFERROR(SUM(Расходы[Разница (₽)]/Расходы[Сметные]),\"\")","v":""}]
[null,"Ремонт и техническое обслуживание","Операционные",null,null,{"$f":"IFERROR(SUM(Расходы[Сметные]-Расходы[Фактические]), \"\")","v":0},{"$f":"IFERROR(SUM(Расходы[Разница (₽)]/Расходы[Сметные]),\"\")","v":""}]
[null,"Юридические расходы","Операционные",null,null,{"$f":"IFERROR(SUM(Расходы[Сметные]-Расходы[Фактические]), \"\")","v":0},{"$f":"IFERROR(SUM(Расходы[Разница (₽)]/Расходы[Сметные]),\"\")","v":""}]
[null,"Амортизация","Операционные",null,null,{"$f":"IFERROR(SUM(Расходы[Сметные]-Расходы[Фактические]), \"\")","v":0},{"$f":"IFERROR(SUM(Расходы[Разница (₽)]/Расходы[Сметные]),\"\")","v":""}]
[null,"Доставка","Операционные",null,null,{"$f":"IFERROR(SUM(Расходы[Сметные]-Расходы[Фактические]), \"\")","v":0},{"$f":"IFERROR(SUM(Расходы[Разница (₽)]/Расходы[Сметные]),\"\")","v":""}]
[null,"Хранилище","Операционные",null,null,{"$f":"IFERROR(SUM(Расходы[Сметные]-Расходы[Фактические]), \"\")","v":0},{"$f":"IFERROR(SUM(Расходы[Разница (₽)]/Расходы[Сметные]),\"\")","v":""}]
[null,"Магазин","Персонал",null,null,{"$f":"IFERROR(SUM(Расходы[Сметные]-Расходы[Фактические]), \"\")","v":0},{"$f":"IFERROR(SUM(Расходы[Разница (₽)]/Расходы[Сметные]),\"\")","v":""}]
[null,"Продавцы","Персонал",null,null,{"$f":"IFERROR(SUM(Расходы[Сметные]-Расходы[Фактические]), \"\")","v":0},{"$f":"IFERROR(SUM(Расходы[Разница (₽)]/Расходы[Сметные]),\"\")","v":""}]
[null,"Другие","Персонал",null,null,{"$f":"IFERROR(SUM(Расходы[Сметные]-Расходы[Фактические]), \"\")","v":0},{"$f":"IFERROR(SUM(Расходы[Разница (₽)]/Расходы[Сметные]),\"\")","v":""}]
[null,"Общие расходы",null,{"$f":"IFERROR(SUM(Расходы[Сметные]), \"\")","v":0},{"$f":"IFERROR(SUM(Расходы[Фактические]), \"\")","v":0},{"$f":"IFERROR(SUM(Расходы[Разница (₽)]), \"\")","v":0},{"$f":"IFERROR(SUM(Расходы[[#Totals],[Разница (₽)]]/Расходы[[#Totals],[Сметные]]),\"\")","v":""}]

{"sheet":"Категории","index":1,"n_rows":4,"n_cols":2,"rows_kept":4}
[null,"Обзор категорий"]
[null,"Категория"]
[null,"Операционные"]
[null,"Персонал"]